{"text_format":"1","workbook":"xlsx","n_sheets":1,"sheets":["الإذن"],"not_rendered":{"charts":0,"images":1,"macros":1,"external_links":0,"defined_names":1,"comments":0,"pivot_tables":0},"unopened":[],"bounds":{"document_bytes":16777216,"sheet_cells":100000,"rows_first":2000,"rows_last":500,"rows_between":2000,"halvings":0,"cell_chars":16384,"cell_head_chars":4096},"cells_cut":0,"cells_raw":0,"read":"whole","date_system":"1900"}

{"sheet":"الإذن","index":0,"n_rows":35,"n_cols":30,"rows_kept":35,"cut":false,"hidden":false,"merged":[[43,4,43,5],[44,1,44,2],[45,1,45,2],[34,2,34,7],[5,1,5,2],[8,3,8,9],[10,2,10,3],[10,9,10,12]]}
[null,null,null,null,null,null,3]
[null,null,null,null,null,null,null,null,null,null,null,null,null,null,null,null,null,null,null,null,null,null,null,null,null,null,null,null,null,"يناير"]
[null,null,null,null,null,null,null,null,null,null,null,null,null,null,null,null,null,"IF('ادخال البيانات'!$B8=\"\";\"\";VLOOK2ALL('ادخال البيانات'!$DU$8:$DU$102;$G$5;B12;-122))",null,null,null,null,null,null,null,null,null,null,null,"فبراير"]
[null,null,null,null,null,null,null,null,null,null,null,null,null,null,null,null,null,"IF('ادخال البيانات'!$B8=\"\";\"\";VLOOK2ALL('ادخال البيانات'!$DU$8:$DU$102;$G$5;B12;-121))",null,null,null,null,null,null,null,null,null,null,null,"مارس"]
[null,null,null,null,null,null,null,null,null,null,null,null,null,null,null,null,null,null,null,null,null,null,null,null,null,null,null,null,null,"أبريل"]
[null,null,null,null,null,null,null,null,null,null,null,null,null,null,null,null,null,null,null,null,null,null,null,null,null,null,null,null,null,"مايو"]
[null,null,null,null,null,null,null,null,null,null,null,null,null,null,null,null,null,null,null,null,null,null,null,null,null,null,null,null,null,"يونيو"]
[null,null,null,null,null,null,null,null,null,null,null,null,null,null,null,null,null,null,null,null,null,null,null,null,null,null,null,null,null,"يوليو"]
[null,null,null,null,null,null,null,null,null,null,null,null,null,null,null,null,null,null,null,null,null,null,null,null,null,null,null,null,null,"أغسطس"]
[null,null,null,null,null,null,null,null,null,null,null,null,null,null,null,null,null,null,null,null,null,null,null,null,null,null,null,null,null,"سبتمبر"]
[null,"م","اليوم والتاريخ",null,"الاجمالى","العدد","الحاضر","الكلى","المنصرف","ملاحظات",null,null,null,null,null,null,null,null,null,null,null,null,null,null,null,null,null,null,null,"أكتوبر"]
[0,{"$f":"IF(D12>0,SUBTOTAL(103,$D12:D$12),\"\")","v":""},null,null,null,null,null,null,null,null,null,null,null,null,null,null,null,null,null,null,null,null,null,null,null,null,null,null,null,"نوفمبر"]
[0,{"$f":"ROW()-11","v":2},{"$f":"IF(D13=\"\",\"\",TEXT(D13,\"DDD\"))","v":"الجمعة"},"2024-02-02",null,null,null,null,null,null,null,null,null,null,null,null,null,null,null,null,null,null,null,null,null,null,null,null,null,"ديسمبر"]
[0,3,"السبت","2024-02-03",null,null,null,null,null,null,null,null,null,null,null,null,null,null,null,null,null,null,null,null,null,null,null,null,null,"يناير"]
[0,4,"الأحد","2024-02-04",null,null,null,null,null,null,null,null,null,null,null,null,null,null,null,null,null,null,null,null,null,null,null,null,null,"فبراير"]
[0,5,"الإثنين","2024-02-05",null,null,null,null,null,null,null,null,null,null,null,null,null,null,null,null,null,null,null,null,null,null,null,null,null,"مارس"]
[0,6,"الثلاثاء","2024-02-06",null,null,null,null,null,null,null,null,null,null,null,null,null,null,null,null,null,null,null,null,null,null,null,null,null,"أبريل"]
[0,7,"الأربعاء","2024-02-07",null,null,null,null,null,null,null,null,null,null,null,null,null,null,null,null,null,null,null,null,null,null,null,null,null,"مايو"]
[null,8,"الخميس","2024-02-08",179,40,139,139,139,200,100,300,100,null,null,null,null,null,null,null,null,null,null,null,null,null,null,null,null,"يونيو"]
[null,9,"الجمعة","2024-02-09",179,40,139,139,139,200,100,300,100,null,null,null,null,null,null,null,null,null,null,null,null,null,null,null,null,"يوليو"]
[null,10,"السبت","2024-02-10",179,40,139,139,139,200,100,300,100,null,null,null,null,null,null,null,null,null,null,null,null,null,null,null,null,"أغسطس"]
[null,11,"الأحد","2024-02-11",179,40,139,139,139,200,100,300,100,null,null,null,null,null,null,null,null,null,null,null,null,null,null,null,null,"سبتمبر"]
[null,12,"الإثنين","2024-02-12",179,40,139,139,139,200,100,300,100,null,null,null,null,null,null,null,null,null,null,null,null,null,null,null,null,"أكتوبر"]
[null,13,"الثلاثاء","2024-02-13",179,40,139,139,139,200,100,300,100,null,null,null,null,null,null,null,null,null,null,null,null,null,null,null,null,"نوفمبر"]
[null,14,"الأربعاء","2024-02-14",179,40,139,139,139,200,100,300,100,null,null,null,null,null,null,null,null,null,null,null,null,null,null,null,null,"ديسمبر"]
[null,15,"الخميس","2024-02-15",179,40,139,139,139,200,100,300,100]
[null,16,"الجمعة","2024-02-16",179,40,139,139,139,200,100,300,100]
[null,17,"السبت","2024-02-17",179,40,139,139,139,200,100,300,100]
[0,18,""]
[0,19,""]
[0,20,""]
[0,21,""]
[0,22,""]
[0,23,"",""]
[null,null,null,null,null,null,null,null,{"$f":"SUM(I12:I34)","v":1390}]